bitfinex/quotes_SOLUSD_20250819
["timestamp","ask_amount","ask_price","bid_price","bid_amount"]
[1755577043306,19.24821407,178.72,178.68,42.34]
[1755577043476,19.24821407,178.72,178.68,43.0]
[1755577043791,45.24821407,178.73,178.69,0.66]
[1755577044382,38.54557426,178.73,178.68,54.88557426]
[1755577044580,12.74557426,178.76,178.7,13.20557426]
[1755577044882,12.74557426,178.76,178.7,0.66]
[1755577044883,0.2,178.76,178.7,0.66]
[1755577045079,0.2,178.76,178.73,12.54557426]
[1755577045376,12.74557426,178.76,178.74,42.32]
[1755577045581,13.25557426,178.75,178.74,42.32]
[1755577046008,39.25557426,178.75,178.74,42.32]
[1755577046212,39.25557426,178.75,178.71,42.32]
[1755577046382,12.54557426,178.72,178.71,42.32]
[1755577046577,39.25557426,178.72,178.65,0.72]
[1755577046801,26.71,178.72,178.66,42.32]
[1755577047020,12.54557426,178.7,178.66,42.32]
[1755577047509,12.54557426,178.7,178.67,0.66]
[1755577047678,38.54557426,178.72,178.68,0.66]
[1755577047876,12.54557426,178.7,178.66,42.32]
[1755577048083,12.54557426,178.69,178.66,42.32]
[1755577048278,0.71,178.72,178.66,42.32]
[1755577048279,19.22822498,178.7,178.66,42.98]
[1755577048586,19.22822498,178.7,178.67,0.66]
[1755577048893,19.22822498,178.71,178.67,0.66]
[1755577049283,26.0,178.75,178.69,19.22822498]
[1755577049489,19.22822498,178.75,178.7,61.54822498]
[1755577049696,19.22822498,178.71,178.65,25.54570544]
[1755577049897,19.22822498,178.7,178.66,42.32]
[1755577050107,19.22822498,178.69,178.66,42.32]
[1755577050279,0.71,178.71,178.65,0.06]
[1755577050486,0.71,178.71,178.66,42.32]
[1755577050487,19.22822498,178.69,178.66,42.32]
[1755577050704,19.22822498,178.68,178.66,42.32]
[1755577050903,0.71,178.69,178.66,42.32]
[1755577050904,19.22822498,178.67,178.66,42.32]
[1755577051398,19.22822498,178.68,178.66,42.32]
[1755577051992,19.22822498,178.67,178.66,42.32]
[1755577053010,19.93822498,178.67,178.66,42.32]
[1755577053183,45.93822498,178.67,178.65,0.06]
[1755577053386,19.93822498,178.66,178.65,0.06]
[1755577053601,19.93822498,178.66,178.62,0.06]
[1755577053602,45.37038655,178.63,178.62,0.06]
[1755577053984,61.18660212,178.63,178.62,0.06]
[1755577054207,69.6665307,178.63,178.62,0.06]
[1755577055608,0.14216157,178.61,178.6,0.06]
[1755577055809,39.18376563,178.61,178.6,0.06]
[1755577057612,41.24837714,178.59,178.58,0.06]
[1755577057924,68.08450705,178.59,178.58,0.06]
[1755577058081,65.17376563,178.59,178.58,0.06]
[1755577058280,68.7887146,178.59,178.58,0.06]
[1755577060112,64.79155109,178.59,178.58,0.06]
[1755577060318,68.81605337,178.59,178.58,0.06]
[1755577060811,111.13605337,178.59,178.58,0.06]
[1755577061518,111.13605337,178.59,178.49,0.2]
[1755577061519,26.0,178.5,178.49,0.2]
[1755577061722,26.87391315,178.5,178.49,0.2]
[1755577062296,4.02450228,178.5,178.49,0.2]
[1755577062620,26.0,178.5,178.49,0.9]
[1755577062822,26.0,178.5,178.49,0.2]
[1755577062823,19.22822498,178.5,178.49,0.2]
[1755577063013,26.87707271,178.5,178.49,0.2]
[1755577063201,27.71923428,178.5,178.49,0.2]
[1755577063394,26.87707271,178.5,178.49,0.2]
[1755577064023,23.2548205,178.5,178.49,0.9]
[1755577064238,4.02659552,178.5,178.49,0.9]
[1755577064527,45.22822498,178.52,178.49,0.9]
[1755577064837,4.02659552,178.51,178.49,0.9]
[1755577065126,26.0,178.51,178.5,0.7]
[1755577065492,49.25507589,178.51,178.5,0.7]
[1755577065736,49.25485173,178.51,178.49,0.2]
[1755577065910,23.25485173,178.5,178.49,0.2]
[1755577066131,26.87731091,178.5,178.49,0.2]
[1755577066327,23.25485173,178.5,178.49,0.2]
[1755577066848,4.02662675,178.5,178.49,0.9]
[1755577067048,23.25485173,178.5,178.49,0.9]
[1755577067252,23.25485173,178.5,178.49,0.2]
[1755577067556,19.22822498,178.51,178.49,0.9]
[1755577067723,19.22822498,178.5,178.49,0.9]
[1755577067913,19.22822498,178.5,178.49,0.2]
[1755577068329,19.22822498,178.5,178.49,0.9]
[1755577068842,19.22822498,178.5,178.49,0.2]
[1755577069034,19.92822498,178.5,178.49,0.2]
[1755577069225,24.09033979,178.5,178.49,0.2]
[1755577069552,39.19655536,178.5,178.49,0.2]
[1755577069873,39.19655536,178.5,178.37,40.36]
[1755577069874,0.14216157,178.46,178.37,40.36]
[1755577070053,19.22822498,178.39,178.37,0.7]
[1755577070223,19.22822498,178.38,178.36,42.32]
[1755577070427,19.22822498,178.4,178.36,42.32]
[1755577070838,19.22822498,178.39,178.37,0.7]
[1755577071033,19.22822498,178.4,178.38,0.7]
[1755577071221,19.22822498,178.4,178.39,0.7]
[1755577072160,19.22822498,178.41,178.39,0.7]
[1755577072935,26.0,178.44,178.39,0.7]
[1755577072936,19.22822498,178.4,178.39,0.7]
[1755577073760,19.22822498,178.4,178.36,43.02]
[1755577073941,19.22822498,178.4,178.37,0.7]
[1755577074145,19.22822498,178.4,178.38,0.7]
[1755577074369,12.59050784,178.4,178.39,0.7]
[1755577074749,26.0,178.44,178.39,0.7]
[1755577074951,12.59050784,178.41,178.39,0.7]
[1755577075375,26.0,178.44,178.39,0.7]
[1755577075557,12.59050784,178.41,178.39,0.7]
[1755577075747,12.59050784,178.4,178.39,0.7]
[1755577075949,12.59050784,178.4,178.36,42.32]
[1755577076148,12.59050784,178.4,178.37,0.7]
[1755577076349,12.59050784,178.41,178.38,0.7]
[1755577076852,12.59050784,178.41,178.39,0.7]
[1755577077174,12.59050784,178.4,178.39,0.7]
[1755577077549,12.59050784,178.4,178.37,0.7]
[1755577077745,38.59050784,178.4,178.37,0.7]
[1755577077941,38.59050784,178.4,178.36,42.32]
[1755577078154,12.59050784,178.39,178.36,43.02]
[1755577079453,38.59050784,178.4,178.36,43.02]
[1755577079651,12.59050784,178.39,178.36,43.02]
[1755577080280,138.01446199,178.43,178.33,26.06]
[1755577080281,12.59050784,178.37,178.33,0.06]
[1755577080491,12.59050784,178.34,178.33,0.76]
[1755577080784,12.59050784,178.34,178.33,0.06]
[1755577081365,26.0,178.38,178.33,0.76]
[1755577081580,38.59050784,178.39,178.34,0.7]
[1755577081878,12.59050784,178.38,178.33,0.06]
[1755577082048,12.59050784,178.39,178.35,0.7]
[1755577082459,12.59050784,178.37,178.33,0.06]
[1755577082648,12.59050784,178.34,178.33,0.06]
[1755577083279,0.7,178.36,178.33,0.06]
[1755577083583,12.59050784,178.34,178.33,0.06]
[1755577084658,12.59050784,178.37,178.33,0.76]
[1755577084890,12.59050784,178.38,178.34,0.7]
[1755577085189,12.59050784,178.38,178.35,0.7]
[1755577086053,38.59050784,178.4,178.36,0.7]
[1755577086966,12.59050784,178.39,178.36,0.7]
[1755577087479,12.59050784,178.39,178.33,12.65050784]
[1755577087695,26.0,178.4,178.34,0.7]
[1755577087993,26.0,178.4,178.34,13.29050784]
[1755577088150,38.59050784,178.4,178.34,13.29050784]
[1755577088481,12.59050784,178.39,178.35,0.72]
[1755577088693,57.56837714,178.45,178.35,0.72]
[1755577088694,0.67,178.47,178.38,12.59050784]
[1755577089000,12.59050784,178.42,178.39,0.72]
[1755577089287,12.59050784,178.41,178.37,0.72]
[1755577089498,26.0,178.44,178.35,54.91050784]
[1755577089659,26.0,178.44,178.35,60.51737937]
[1755577089864,0.67,178.44,178.35,60.51737937]
[1755577090085,4.6743987,178.44,178.36,0.72]
[1755577090404,12.59050784,178.38,178.36,0.72]
[1755577090572,12.59050784,178.37,178.35,42.32]
[1755577090892,12.59050784,178.36,178.33,0.06]
[1755577091067,12.59050784,178.34,178.33,0.06]
[1755577092671,13.26050784,178.34,178.33,0.06]
[1755577092897,17.40886945,178.34,178.33,0.06]
[1755577093765,32.51508502,178.34,178.33,0.06]
[1755577093968,26.0,178.32,178.31,0.06]
[1755577094196,42.73886945,178.32,178.31,0.06]
[1755577094401,43.40886945,178.32,178.31,0.06]
[1755577094571,58.51508502,178.32,178.31,0.06]
[1755577095168,54.50888498,178.32,178.31,0.06]
[1755577095413,58.52636785,178.32,178.31,0.06]
[1755577095990,58.5247548,178.32,178.31,0.06]
[1755577096505,62.14246509,178.32,178.29,0.06]
[1755577096676,0.14216157,178.28,178.27,0.06]
[1755577096874,32.5247548,178.28,178.2,0.72]
[1755577097074,12.59050784,178.21,178.18,42.32]
[1755577097297,12.59050784,178.21,178.17,0.72]
[1755577097298,38.59050784,178.19,178.17,0.72]
[1755577097478,12.59050784,178.18,178.17,0.72]
[1755577097680,26.0,178.19,178.17,0.72]
[1755577097996,12.59050784,178.18,178.14,0.72]
[1755577098297,12.59050784,178.17,178.14,0.72]
[1755577098679,4.01908417,178.16,178.14,0.72]
[1755577099418,42.60680476,178.16,178.13,42.32]
[1755577099784,42.60680476,178.16,178.11,0.72]
[1755577100103,43.27680476,178.16,178.09,55.63050784]
[1755577100806,30.68629692,178.16,178.12,12.59050784]
[1755577101221,4.01629692,178.16,178.09,43.04]
[1755577101391,4.01629692,178.16,178.15,12.69050784]
[1755577101392,30.01629692,178.16,178.15,12.69050784]
[1755577101593,4.27734952,178.19,178.15,12.69050784]
[1755577101594,26.0,178.18,178.15,12.69050784]
[1755577101909,30.00783079,178.17,178.15,12.69050784]
[1755577102081,26.0,178.17,178.15,12.69050784]
[1755577102497,26.0,178.18,178.15,13.41050784]
[1755577102808,30.00774303,178.17,178.15,12.69050784]
[1755577103107,26.0,178.18,178.15,12.69050784]
[1755577103407,4.00717738,178.17,178.15,12.69050784]
[1755577103589,4.00717738,178.17,178.16,13.31050784]
[1755577103792,4.00717738,178.17,178.16,0.72]
[1755577104000,4.00717738,178.17,178.16,13.31050784]
[1755577104306,8.1350088,178.31,178.16,18.92344003]
[1755577104504,4.6795867,178.3,178.24,12.59050784]
[1755577104804,16.60009454,178.29,178.23,12.59050784]
[1755577105014,4.0095867,178.28,178.24,12.59050784]
[1755577105195,4.0095867,178.27,178.25,13.31050784]
[1755577105384,30.0095867,178.26,178.25,13.31050784]
[1755577105587,4.0095867,178.26,178.25,13.31050784]
[1755577105800,3.61216973,178.32,178.25,13.31050784]
[1755577106005,4.01297295,178.31,178.3,12.59050784]
[1755577106308,4.01297295,178.31,178.3,13.31050784]
[1755577106606,0.03,178.36,178.3,13.31050784]
[1755577106807,4.01740964,178.35,178.31,0.72]
[1755577107014,4.01740964,178.34,178.31,0.72]
[1755577107308,26.0,178.31,178.28,13.31050784]
[1755577107615,4.01762632,178.3,178.28,13.31050784]
[1755577107783,30.01762632,178.29,178.27,54.91050784]
[1755577108003,16.60763586,178.28,178.23,0.72]
[1755577108189,12.59050784,178.26,178.23,0.72]
[1755577108401,45.32487603,178.24,178.2,42.32]
[1755577108601,23.34172595,178.23,178.2,42.32]
[1755577108803,4.01583387,178.22,178.2,43.04]
[1755577109015,26.0,178.24,178.2,42.32]
[1755577109216,57.56837714,178.3,178.21,20.04487603]
[1755577109217,26.0,178.27,178.21,20.04487603]
[1755577109408,26.0,178.27,178.24,19.32487603]
[1755577109409,4.01718975,178.26,178.24,19.32487603]
[1755577109721,26.0,178.27,178.25,0.72]
[1755577109897,19.32487603,178.29,178.23,20.04487603]
[1755577110230,26.0,178.29,178.26,19.32487603]
[1755577110394,26.0,178.28,178.26,0.72]
[1755577110786,4.02025372,178.27,178.23,0.72]
[1755577111119,26.0,178.24,178.2,43.04]
[1755577111287,45.32487603,178.24,178.2,43.04]
[1755577111887,26.0,178.24,178.21,0.72]
[1755577112393,19.32487603,178.24,178.2,42.32]
[1755577112585,19.32487603,178.21,178.2,42.32]
[1755577112780,19.32487603,178.22,178.2,42.32]
[1755577112998,26.0,178.26,178.17,19.32487603]
[1755577113218,26.0,178.21,178.2,0.72]
[1755577114009,26.0,178.22,178.2,20.04487603]
[1755577114218,26.0,178.22,178.21,0.72]
[1755577115316,26.0,178.24,178.21,20.04487603]
[1755577115506,26.0,178.24,178.21,19.32487603]
[1755577115806,19.32487603,178.24,178.18,20.04487603]
[1755577116108,26.0,178.25,178.21,19.32487603]
[1755577116295,26.0,178.23,178.22,20.04487603]
[1755577117316,26.0,178.26,178.22,62.34487603]
[1755577117518,19.32487603,178.3,178.22,62.34487603]
[1755577117519,19.74487603,178.31,178.25,19.32487603]
[1755577117722,4.02681051,178.3,178.25,19.32487603]
[1755577118094,26.0,178.28,178.25,19.97487603]
[1755577118416,19.74487603,178.31,178.23,19.32487603]
[1755577118417,19.32487603,178.29,178.23,19.32487603]
[1755577118723,19.32487603,178.27,178.22,42.3]
[1755577118917,19.32487603,178.26,178.22,42.3]
[1755577119103,19.32487603,178.27,178.22,42.3]
[1755577119300,0.72,178.29,178.23,0.65]
[1755577119490,23.35291265,178.3,178.24,19.32487603]
[1755577119691,26.14216157,178.31,178.25,19.32487603]
[1755577119692,4.02803662,178.29,178.25,19.32487603]
[1755577119892,45.32487603,178.31,178.25,19.97487603]
[1755577120094,4.02764284,178.3,178.25,19.97487603]
[1755577120316,4.02764284,178.3,178.26,0.65]
[1755577120596,19.32487603,178.28,178.24,42.28]
[1755577120932,20.04487603,178.27,178.24,42.28]
[1755577121231,19.32487603,178.26,178.24,42.28]
[1755577121404,20.04487603,178.25,178.24,42.28]
[1755577121725,24.07464257,178.25,178.19,42.28]
[1755577121925,0.14216157,178.31,178.21,19.32487603]
[1755577121926,4.02960754,178.24,178.21,19.32487603]
[1755577122102,4.02960754,178.24,178.22,0.65]
[1755577122304,45.32487603,178.27,178.22,0.65]
[1755577122498,4.03042539,178.26,178.22,0.65]
[1755577122839,19.32487603,178.28,178.23,0.65]
[1755577123133,19.32487603,178.28,178.24,19.97487603]
[1755577123134,26.0,178.28,178.24,19.97487603]
[1755577123292,26.0,178.27,178.25,19.97487603]
[1755577123493,20.07487603,178.32,178.26,19.32487603]
[1755577123754,20.07487603,178.32,178.28,19.32487603]
[1755577123755,30.03283743,178.31,178.28,19.32487603]
[1755577124042,0.03,178.32,178.28,19.97487603]
[1755577124249,19.35487603,178.32,178.28,42.28]
[1755577124449,45.32487603,178.3,178.28,42.28]
[1755577124634,4.06443748,178.29,178.28,42.28]
[1755577124951,26.0,178.26,178.2,19.38487603]
[1755577125114,19.32487603,178.25,178.21,42.28]
[1755577125317,26.75,178.29,178.22,19.97487603]
[1755577125643,26.0,178.26,178.24,19.32487603]
[1755577125853,19.32487603,178.26,178.21,42.28]
[1755577126242,19.32487603,178.25,178.21,42.28]
[1755577126446,19.32487603,178.24,178.21,42.28]
[1755577126868,19.32487603,178.25,178.21,42.28]
[1755577127046,45.32487603,178.25,178.21,42.28]
[1755577127641,26.0,178.22,178.21,42.28]
[1755577128759,26.0,178.21,178.2,0.06]
[1755577128956,20.04487603,178.21,178.2,0.06]
[1755577129470,19.32487603,178.22,178.2,0.06]
[1755577129676,26.0,178.21,178.2,0.06]
[1755577129845,26.0,178.24,178.2,20.03487603]
[1755577130051,26.0,178.24,178.22,19.32487603]
[1755577130668,26.0,178.24,178.22,19.97487603]
[1755577130947,26.0,178.23,178.2,19.38487603]
[1755577131182,26.0,178.22,178.2,0.06]
[1755577131485,19.32487603,178.28,178.21,0.65]
[1755577131654,0.03,178.29,178.24,19.32487603]
[1755577131851,26.0,178.27,178.24,19.32487603]
[1755577132056,26.0,178.27,178.24,19.97487603]
[1755577132255,26.0,178.25,178.22,61.58487603]
[1755577132472,26.0,178.25,178.22,62.23487603]
[1755577133648,26.0,178.25,178.22,42.26]
[1755577133649,26.0,178.24,178.22,42.26]
[1755577134258,26.0,178.23,178.22,42.26]
[1755577135591,26.0,178.23,178.2,42.32]
[1755577135759,26.0,178.26,178.21,13.26232002]
[1755577136074,26.0,178.27,178.23,12.61232002]
[1755577136273,7.70122038,178.26,178.24,42.26]
[1755577136476,3.64800563,178.26,178.24,42.26]
[1755577136875,17.38562752,178.25,178.21,42.26]
[1755577137068,26.0,178.23,178.21,42.26]
[1755577137300,12.61232002,178.24,178.21,42.26]
[1755577137469,29.64904108,178.26,178.22,0.65]
[1755577137794,26.0,178.26,178.23,0.65]
[1755577138167,26.0,178.26,178.22,12.61232002]
[1755577138392,26.0,178.26,178.22,13.26232002]
[1755577138591,26.0,178.24,178.22,0.65]
[1755577138803,26.0,178.24,178.21,42.26]
[1755577139109,26.0,178.24,178.21,54.87232002]
[1755577139272,26.0,178.23,178.21,54.87232002]
[1755577139696,26.0,178.24,178.21,55.52232002]
[1755577139994,26.0,178.24,178.21,54.87232002]
[1755577140195,0.03,178.29,178.23,12.61232002]
[1755577140491,0.03,178.29,178.28,12.61232002]
[1755577140665,0.03,178.29,178.28,42.24]
[1755577141097,26.03,178.29,178.28,42.24]
[1755577141709,26.0,178.26,178.23,0.65]
[1755577142003,26.0,178.26,178.25,42.24]
[1755577142297,26.0,178.28,178.25,42.24]
[1755577142514,7.73649674,178.27,178.25,42.24]
[1755577142804,3.68033966,178.27,178.25,42.24]
[1755577143177,26.0,178.23,178.21,0.06]
[1755577143378,26.0,178.22,178.21,42.3]
[1755577143677,26.0,178.22,178.21,42.95]
[1755577144493,26.0,178.23,178.21,42.95]
[1755577144691,132.7,178.26,178.22,13.26232002]
[1755577144899,132.7,178.26,178.23,12.61232002]
[1755577144900,132.7,178.25,178.23,12.61232002]
[1755577145092,132.7,178.25,178.24,42.89]
[1755577145291,132.7,178.25,178.24,55.50232002]
[1755577145488,0.03,178.27,178.24,55.50232002]
[1755577145695,0.03,178.27,178.25,0.65]
[1755577145913,0.03,178.27,178.26,5.60978346]
[1755577146211,0.03,178.27,178.26,20.71599903]
[1755577146397,0.03,178.27,178.26,21.36599903]
[1755577147390,0.03,178.29,178.28,0.14216157]
[1755577147712,0.03,178.32,178.3,0.14216157]
[1755577148009,0.03,178.32,178.31,55.57232002]
[1755577148831,0.03,178.32,178.31,70.67853559]
[1755577149204,0.03,178.32,178.31,70.82069716]
[1755577149929,0.03,178.32,178.31,76.42890758]
[1755577152147,1e-08,178.32,178.31,76.42890758]
[1755577152726,1e-08,178.34,178.32,15.24837714]
[1755577152928,1e-08,178.34,178.33,70.06069716]
[1755577153223,1e-08,178.34,178.33,70.78069716]
[1755577154109,1e-08,178.36,178.35,41.10621557]
[1755577154430,1e-08,178.38,178.37,0.14216157]
[1755577154732,0.2,178.45,178.38,15.10621557]
[1755577155046,0.2,178.45,178.44,12.61232002]
[1755577155210,0.2,178.45,178.44,69.91853559]
[1755577155531,0.2,178.45,178.44,70.63853559]
[1755577156033,0.2,178.45,178.44,76.24266022]
[1755577156209,0.2,178.45,178.44,54.81232002]
[1755577156420,0.2,178.45,178.44,54.79232002]
[1755577156836,0.2,178.45,178.44,42.18]
[1755577157724,0.2,178.45,178.42,12.61232002]
[1755577157926,0.2,178.45,178.38,14.15696827]
[1755577157927,39.32232002,178.44,178.43,42.18]
[1755577158138,26.71,178.44,178.43,42.18]
[1755577158327,0.2,178.45,178.43,42.18]
[1755577159362,26.0,178.42,178.38,33.3244766]
[1755577159521,26.0,178.42,178.39,54.77232002]
[1755577159722,26.0,178.43,178.4,13.33232002]
[1755577159921,26.0,178.43,178.41,42.16]
[1755577160117,0.2,178.45,178.44,15.10621557]
[1755577160341,0.2,178.45,178.44,54.77232002]
[1755577160744,0.2,178.45,178.44,57.98621557]
[1755577161023,0.2,178.45,178.44,70.59853559]
[1755577161246,0.2,178.45,178.44,70.74069716]
[1755577161836,0.2,178.45,178.44,28.43853559]
[1755577162132,0.2,178.45,178.44,70.59853559]
[1755577162333,0.2,178.45,178.44,76.20266022]
[1755577162939,0.2,178.45,178.44,42.16]
[1755577163151,0.2,178.45,178.42,5.60467276]
[1755577163458,0.2,178.45,178.43,42.16]
[1755577164051,0.2,178.45,178.43,54.77232002]
[1755577164564,0.2,178.45,178.44,28.43853559]
[1755577166543,0.2,178.45,178.44,34.04266022]
[1755577168865,0.03,178.47,178.44,34.18482179]
[1755577169081,1e-08,178.47,178.46,27.71853559]
[1755577169264,1e-08,178.47,178.46,27.86069716]
[1755577169438,1e-08,178.47,178.46,28.58069716]
[1755577170940,1e-08,178.5,178.49,41.10621557]
[1755577171276,0.2,178.51,178.5,15.24837714]
[1755577171491,0.2,178.51,178.5,28.58069716]
[1755577171677,0.2,178.51,178.5,15.10621557]
[1755577171994,0.2,178.51,178.5,54.71232002]
[1755577172191,26.44,178.54,178.5,54.71232002]
[1755577172364,25.94,178.54,178.5,54.71232002]
[1755577172564,25.94,178.54,178.5,42.1]
[1755577172782,0.03,178.55,178.5,42.1]
[1755577172988,0.03,178.55,178.47,15.10621557]
[1755577172989,12.61232002,178.53,178.47,15.10621557]
[1755577173166,12.61232002,178.49,178.43,13.33232002]
[1755577173369,12.61232002,178.49,178.44,42.1]
[1755577173574,12.61232002,178.5,178.44,54.71232002]
[1755577173874,0.03,178.55,178.49,12.61232002]
[1755577174088,0.03,178.55,178.52,12.61232002]
[1755577174285,0.03,178.55,178.53,42.1]
[1755577174476,26.03,178.55,178.53,42.1]
[1755577174775,26.0,178.54,178.53,42.1]
[1755577175676,0.03,178.55,178.53,55.43232002]
[1755577175989,0.03,178.6,178.55,0.14216157]
[1755577176164,0.03,178.6,178.59,27.71853559]
[1755577176367,0.03,178.6,178.59,69.79853559]
[1755577176691,0.03,178.6,178.59,57.18621557]
[1755577176997,0.03,178.6,178.59,54.69232002]
[1755577177196,0.03,178.6,178.59,76.11795325]
[1755577177392,0.03,178.6,178.59,76.26011482]
[1755577177764,0.03,178.6,178.59,76.11795325]
[1755577178068,0.03,178.6,178.59,76.09795325]
[1755577178465,0.03,178.6,178.59,76.24011482]
[1755577178897,1e-08,178.62,178.6,15.24837714]
[1755577179076,0.2,178.68,178.64,15.24837714]
[1755577179268,0.2,178.68,178.67,12.61232002]
[1755577179468,0.2,178.68,178.67,54.69232002]
[1755577179816,0.2,178.68,178.66,15.10621557]
[1755577179968,0.2,178.68,178.67,42.08]
[1755577180165,0.2,178.68,178.67,54.69232002]
[1755577180387,0.2,178.68,178.67,42.08]
[1755577180906,12.98232002,178.68,178.62,12.61232002]
[1755577181192,0.2,178.68,178.64,15.10621557]
[1755577181406,26.2,178.68,178.65,54.69232002]
[1755577181826,26.2,178.68,178.65,42.08]
[1755577181827,12.78232002,178.67,178.65,42.08]
[1755577182005,12.61232002,178.66,178.65,42.08]
[1755577182294,12.78232002,178.66,178.65,42.08]
[1755577182479,0.17,178.66,178.65,42.08]
[1755577182684,26.0,178.66,178.65,42.08]
[1755577182880,0.2,178.68,178.65,55.39232002]
[1755577183076,0.2,178.68,178.67,12.61232002]
[1755577183282,0.2,178.68,178.67,54.67232002]
[1755577183901,0.2,178.68,178.67,55.37232002]
[1755577184107,0.2,178.68,178.67,70.47853559]
[1755577184485,0.2,178.68,178.67,57.86621557]
[1755577184677,0.2,178.68,178.67,70.47853559]
[1755577184879,0.2,178.68,178.67,69.77853559]
[1755577185081,0.2,178.68,178.67,54.67232002]
[1755577185689,0.2,178.68,178.64,12.61232002]
[1755577185897,0.2,178.68,178.65,42.06]
[1755577186211,26.0,178.67,178.65,42.06]
[1755577186413,26.17,178.67,178.65,42.06]
[1755577186625,0.17,178.67,178.65,42.06]
[1755577186784,12.81232002,178.68,178.65,42.06]
[1755577186984,0.2,178.68,178.65,54.67232002]
[1755577187214,0.2,178.68,178.67,12.61232002]
[1755577187519,0.2,178.68,178.67,54.65232002]
[1755577187715,0.2,178.68,178.67,42.04]
[1755577187917,0.2,178.68,178.67,54.65232002]
[1755577188128,0.2,178.68,178.67,55.35232002]
[1755577188792,0.2,178.68,178.67,42.04]
[1755577188986,0.2,178.68,178.67,54.65232002]
[1755577189223,0.2,178.68,178.67,76.05544609]
[1755577189432,0.03,178.71,178.7,27.71853559]
[1755577189729,0.03,178.71,178.7,57.14621557]
[1755577190090,0.03,178.71,178.7,57.84621557]
[1755577191018,0.03,178.71,178.7,63.44218647]
[1755577192615,0.03,178.71,178.7,63.58434804]
[1755577192829,0.03,178.71,178.7,65.82719204]
[1755577195313,0.1,178.72,178.71,15.10621557]
[1755577195501,0.03,178.73,178.71,28.56069716]
[1755577195824,1e-08,178.73,178.72,70.58069716]
[1755577197107,1e-08,178.76,178.75,41.10621557]
[1755577197335,1e-08,178.76,178.75,101.47510275]
[1755577197711,1e-08,178.76,178.75,102.17510275]
[1755577198402,1e-08,178.77,178.76,15.24837714]
[1755577198649,1e-08,178.77,178.76,54.63232002]
[1755577199138,1e-08,178.77,178.76,12.61232002]
[1755577199334,1e-08,178.77,178.76,60.22641265]
[1755577199546,1e-08,178.77,178.76,75.33262822]
[1755577200429,1e-08,178.77,178.76,54.61232002]
[1755577200632,0.37000001,178.77,178.73,5.59495794]
[1755577200837,0.37000001,178.77,178.75,15.10621557]
[1755577200838,1e-08,178.77,178.75,15.10621557]
[1755577201124,1e-08,178.77,178.76,42.0]
[1755577201547,1e-08,178.77,178.76,47.59409263]
[1755577201715,1e-08,178.77,178.76,76.01262822]
[1755577201909,1e-08,178.77,178.76,75.31262822]
[1755577202111,1e-08,178.77,178.76,76.01262822]
[1755577202519,1e-08,178.77,178.76,62.7003082]
[1755577202835,1e-08,178.77,178.76,76.01262822]
[1755577203017,1e-08,178.77,178.76,76.15478979]
[1755577203724,1e-08,178.77,178.76,75.45478979]
[1755577204429,1e-08,178.77,178.76,76.15478979]
[1755577206222,1e-08,178.77,178.76,102.15478979]
[1755577206438,12.61232002,178.87,178.77,15.24837714]
[1755577206619,12.61232002,178.87,178.79,15.24837714]
[1755577206818,12.61232002,178.87,178.82,12.61232002]
[1755577207025,12.98232002,178.86,178.83,41.98]
[1755577207336,12.98232002,178.85,178.83,41.98]
[1755577207536,0.37,178.84,178.83,41.98]
[1755577208145,12.61232002,178.86,178.83,41.98]
[1755577208544,12.98232002,178.86,178.83,41.98]
[1755577208839,12.98232002,178.85,178.83,41.98]